bitfinex-derivatives/quotes_BTCF0:USTF0_20250620
["timestamp","ask_amount","ask_price","bid_price","bid_amount"]
[1750454893182,0.69117274,103530.0,103520.0,0.37130242]
[1750454893377,0.69117274,103530.0,103520.0,0.08193512]
[1750454893681,0.82096611,103530.0,103520.0,0.24231752]
[1750454893884,0.82096611,103530.0,103520.0,0.24271752]
[1750454894080,0.82096611,103530.0,103520.0,0.24231752]
[1750454894277,0.76334505,103530.0,103520.0,0.24231752]
[1750454894482,0.76334505,103530.0,103520.0,0.24271752]
[1750454894782,0.82101544,103530.0,103520.0,0.24671752]
[1750454894980,0.76339438,103530.0,103520.0,0.24871752]
[1750454895383,0.37991193,103530.0,103520.0,0.60951752]
[1750454895577,0.27161856,103530.0,103520.0,0.31131752]
[1750454895779,0.27161856,103530.0,103520.0,0.67211752]
[1750454899785,0.27161856,103530.0,103520.0,0.67629159]
[1750454902184,0.25074736,103550.0,103540.0,0.193145]
[1750454902389,0.2722196,103550.0,103540.0,0.553945]
[1750454902581,0.2722196,103550.0,103540.0,0.646545]
[1750454902782,0.0790933,103550.0,103540.0,1.04458682]
[1750454902981,0.64019124,103580.0,103550.0,0.0482775]
[1750454902982,0.83603926,103580.0,103550.0,0.0482775]
[1750454903187,0.7454182,103580.0,103570.0,0.553889]
[1750454903581,0.7454182,103580.0,103570.0,0.618089]
[1750454903782,0.34737638,103580.0,103570.0,0.618089]
[1750454903982,0.1930868,103580.0,103570.0,0.618089]
[1750454904183,0.93583862,103590.0,103580.0,0.1930705]
[1750454904184,0.68763592,103590.0,103580.0,0.1930705]
[1750454904388,0.68763592,103590.0,103580.0,0.2566705]
[1750454904588,0.68763592,103590.0,103580.0,0.6174705]
[1750454905491,0.76373713,103590.0,103580.0,0.6174705]
[1750454905894,0.36569531,103590.0,103580.0,0.6174705]
[1750454906093,0.71547113,103590.0,103580.0,0.6174705]
[1750454906695,0.71647113,103590.0,103580.0,0.6174705]
[1750454907092,0.71647113,103590.0,103580.0,0.6194705]
[1750454907494,0.71547113,103590.0,103580.0,0.6204705]
[1750454911498,1.5778786,103590.0,103580.0,0.003]
[1750454911799,1.6318786,103590.0,103580.0,0.0034]
[1750454912198,0.1930891,103570.0,103560.0,0.0008]
[1750454912400,0.1931078,103560.0,103550.0,0.193126]
[1750454912598,0.98334962,103560.0,103550.0,0.0328]
[1750454912800,0.1931264,103550.0,103540.0,0.21080656]
[1750454912993,0.1931451,103540.0,103530.0,0.9055367]
[1750454913195,0.59118692,103540.0,103530.0,0.9063367]
[1750454913493,0.59118692,103540.0,103530.0,0.9059367]
[1750454913803,0.59118692,103540.0,103530.0,0.8576465]
[1750454914103,0.59118692,103540.0,103530.0,0.8093566]
[1750454914699,0.59118692,103540.0,103530.0,0.4022679]
[1750454915003,0.59118692,103540.0,103530.0,0.20912]
[1750454915187,0.59118692,103540.0,103530.0,0.4022837]
[1750454916300,0.59418692,103540.0,103530.0,0.4002837]
[1750454916896,0.59418692,103540.0,103530.0,0.2587637]
[1750454917100,0.60402511,103540.0,103530.0,0.2587637]
[1750454928699,0.20598329,103540.0,103530.0,0.6195637]
[1750454930208,0.20598329,103540.0,103530.0,0.62373777]
[1750454930409,0.5539202,103560.0,103550.0,0.1931264]
[1750454930717,2.21086432,103580.0,103570.0,0.1930891]
[1750454930902,1.62454432,103580.0,103570.0,0.1836686]
[1750454931107,2.32456322,103580.0,103570.0,0.2143686]
[1750454931607,1.96376322,103580.0,103570.0,0.2143686]
[1750454931918,1.36564322,103580.0,103570.0,0.2143686]
[1750454932211,0.4947,103580.0,103570.0,1.00341042]
[1750454932711,0.4957,103580.0,103570.0,0.6053686]
[1750454933113,0.001,103580.0,103570.0,1.00341042]
[1750454934008,0.002,103580.0,103570.0,1.00341042]
[1750454934611,0.001,103580.0,103570.0,1.00541042]
[1750454934813,0.001,103580.0,103570.0,0.6073686]
[1750454935016,0.001,103580.0,103570.0,1.00541042]
[1750454935812,0.41395261,103590.0,103580.0,0.1930705]
[1750454936112,0.41395261,103590.0,103580.0,0.6180705]
[1750454936513,0.41395261,103590.0,103580.0,0.6495705]
[1750454936917,0.41395261,103590.0,103580.0,0.6515705]
[1750454937316,0.41395261,103590.0,103580.0,0.6525705]
[1750454939221,0.54784985,103590.0,103580.0,0.6525705]
[1750454939522,0.41395261,103590.0,103580.0,0.6525705]
[1750454940508,0.36568641,103590.0,103580.0,0.6525705]
[1750454941616,0.20787037,103590.0,103580.0,0.6525705]
[1750454942422,0.28613436,103590.0,103580.0,0.6525705]
[1750454945422,0.28613436,103590.0,103580.0,0.65674457]
[1750454947423,0.68417618,103590.0,103580.0,0.65674457]
[1750454947618,2.985692,103590.0,103580.0,7e-08]
[1750454947918,0.3862103,103570.0,103560.0,0.1939078]
[1750454948123,1.20239857,103570.0,103560.0,0.1939078]
[1750454948324,1.30692581,103570.0,103560.0,0.1939078]
[1750454948717,1.30692581,103570.0,103560.0,0.2239078]
[1750454950433,1.30792581,103570.0,103560.0,0.2239078]
[1750454956831,1.33902581,103570.0,103560.0,0.2239078]
[1750454958323,0.10552724,103570.0,103560.0,0.98274962]
[1750454958530,0.10552724,103570.0,103560.0,2.00983144]
[1750454958531,0.001,103570.0,103560.0,2.00983144]
[1750454958729,0.001,103570.0,103560.0,1.61178962]
[1750454959633,0.05748502,103580.0,103570.0,0.193089]
[1750454959934,0.05748502,103580.0,103570.0,1.18697082]
[1750454961625,0.05748502,103580.0,103570.0,1.18797082]
[1750454962236,0.25055542,103580.0,103570.0,1.18797082]
[1750454969241,0.1930704,103580.0,103570.0,1.18797082]
[1750454971141,0.1930704,103580.0,103570.0,0.789929]
[1750454973141,0.25055542,103580.0,103570.0,0.789929]
[1750454975339,0.05748502,103580.0,103570.0,0.80730228]
[1750454975546,0.42533521,103590.0,103580.0,0.1930703]
[1750454975737,0.82337703,103590.0,103580.0,0.6154703]
[1750454976633,0.82437703,103590.0,103580.0,0.6154703]
[1750454977947,0.82537703,103590.0,103580.0,0.6154703]
[1750454979048,0.76789201,103590.0,103580.0,0.6154703]
[1750454982744,0.76689201,103590.0,103580.0,0.6154703]
[1750454982946,0.76589201,103590.0,103580.0,0.6164703]
[1750454985350,0.84242496,103590.0,103580.0,0.6164703]
[1750454986938,0.84242496,103590.0,103580.0,0.60705196]
[1750454989550,0.44438314,103590.0,103580.0,0.60705196]
[1750454989741,0.84242496,103590.0,103580.0,0.60705196]
[1750454991151,0.84242496,103590.0,103580.0,0.61122603]
[1750454992448,0.87262496,103590.0,103580.0,0.61122603]
[1750454994147,0.193089,103570.0,103560.0,0.0008]
[1750454994354,1.12548628,103570.0,103560.0,0.2557015]
[1750454994544,1.3135272,103570.0,103560.0,0.2561015]
[1750454994740,1.3135272,103570.0,103560.0,0.2557015]
[1750454994946,1.3135272,103570.0,103560.0,0.2561015]
[1750454995551,1.3145272,103570.0,103560.0,0.2561015]
[1750454995753,1.33722063,103570.0,103560.0,0.2561015]
[1750454996353,1.33822063,103570.0,103560.0,0.2561015]
[1750454998354,1.26121697,103570.0,103560.0,0.2561015]
[1750455004362,1.26121697,103570.0,103560.0,0.26027557]
[1750455005361,1.26121697,103570.0,103560.0,0.29077557]
[1750455005963,1.33815001,103570.0,103560.0,0.29077557]
[1750455006163,1.26114635,103570.0,103560.0,0.29077557]
[1750455006363,1.33815001,103570.0,103560.0,0.29077557]
[1750455007163,1.26114635,103570.0,103560.0,0.29077557]
[1750455009264,1.33815001,103570.0,103560.0,0.29077557]
[1750455010758,0.97735001,103570.0,103560.0,0.29077557]
[1750455011363,1.33815001,103570.0,103560.0,0.26027557]
[1750455011567,1.33815001,103570.0,103560.0,0.22847557]
[1750455011759,1.37985001,103570.0,103560.0,0.22807557]
[1750455011966,1.37985001,103570.0,103560.0,0.22847557]
[1750455012971,0.96160819,103570.0,103560.0,0.22847557]
[1750455013272,1.33815001,103570.0,103560.0,0.22847557]
[1750455017669,1.30645001,103570.0,103560.0,0.22847557]
[1750455017872,1.90401001,103570.0,103560.0,0.26157557]
[1750455018471,1.93561001,103570.0,103560.0,0.26157557]
[1750455019271,1.85860635,103570.0,103560.0,0.26157557]
[1750455020767,1.93561001,103570.0,103560.0,0.26157557]
[1750455021675,1.73117242,103570.0,103560.0,0.26157557]
[1750455021874,1.92428012,103570.0,103560.0,0.26157557]
[1750455023171,1.90165731,103570.0,103560.0,0.26157557]
[1750455023472,1.92445322,103570.0,103560.0,0.26157557]
[1750455026772,1.92414361,103570.0,103560.0,0.26157557]
[1750455027378,1.92414361,103570.0,103560.0,0.27935934]
[1750455027578,1.92414361,103570.0,103560.0,0.26157557]
[1750455032878,1.56334361,103570.0,103560.0,0.26157557]
[1750455033182,1.92414361,103570.0,103560.0,0.26157557]
[1750455034085,2.32187582,103570.0,103560.0,0.26157557]
[1750455034270,2.32187582,103570.0,103560.0,0.22847557]
[1750455034785,2.34337582,103570.0,103560.0,0.22847557]
[1750455035185,2.34337582,103570.0,103560.0,0.03537407]
[1750455036393,2.34337582,103570.0,103560.0,0.22848177]
[1750455037482,1.98257582,103570.0,103560.0,0.22848177]
[1750455037781,2.34337582,103570.0,103560.0,0.22848177]
[1750455037980,2.34337582,103570.0,103560.0,0.03537407]
[1750455038483,1.98257582,103570.0,103560.0,0.03537407]
[1750455038684,2.34337582,103570.0,103560.0,0.03537407]
[1750455040778,2.32187582,103570.0,103560.0,0.03537407]
[1750455042284,1.92414361,103570.0,103560.0,0.03537407]
[1750455044881,2.32187582,103570.0,103560.0,0.03537407]
[1750455051589,1.92414361,103570.0,103560.0,0.03537407]
[1750455055195,1.92414361,103570.0,103560.0,0.06647407]
[1750455062402,1.5264114,103570.0,103560.0,0.06647407]
[1750455062701,1.92414361,103570.0,103560.0,0.06647407]
[1750455063502,1.89254361,103570.0,103560.0,0.25958177]
[1750455063702,1.89254361,103570.0,103560.0,0.06647407]
[1750455071914,1.89254361,103570.0,103560.0,0.25958167]
[1750455072615,1.89254361,103570.0,103560.0,0.06647407]
[1750455072811,2.29027582,103570.0,103560.0,0.25958167]
[1750455073614,2.29027582,103570.0,103560.0,0.06647407]
[1750455075715,2.21327216,103570.0,103560.0,0.06647407]
[1750455076411,1.49476001,103570.0,103560.0,0.06647407]
[1750455076615,2.29022443,103570.0,103560.0,0.25958177]
[1750455077220,2.29022443,103570.0,103560.0,0.06647407]
[1750455078313,1.49476001,103570.0,103560.0,0.25958167]
[1750455078519,2.29022443,103570.0,103560.0,0.06647407]
[1750455090728,1.92942443,103570.0,103560.0,0.06647407]
[1750455091027,2.29022443,103570.0,103560.0,0.06647407]
[1750455093628,2.32092443,103570.0,103560.0,0.06647407]
[1750455102341,1.92319222,103570.0,103560.0,0.06647407]
[1750455105140,2.32092443,103570.0,103560.0,0.08413459]
[1750455105643,2.32092443,103570.0,103560.0,0.06647407]
[1750455117953,2.32092443,103570.0,103560.0,0.05705345]
[1750455121254,2.24397216,103570.0,103560.0,0.05705345]
[1750455121855,2.24261216,103570.0,103560.0,0.05705345]
[1750455124366,0.13286053,103570.0,103560.0,1.42406337]
[1750455124554,0.10077926,103570.0,103560.0,1.45406337]
[1750455124753,0.59080311,103580.0,103570.0,0.193089]
[1750455124955,0.59080311,103580.0,103570.0,1.01752121]
[1750455125251,0.70136173,103580.0,103570.0,1.01752121]
[1750455126053,0.59080311,103580.0,103570.0,1.01752121]
[1750455126262,0.31959239,103590.0,103580.0,0.1930704]
[1750455126559,0.37726328,103590.0,103580.0,0.98400261]
[1750455126761,0.60344562,103590.0,103580.0,0.98400261]
[1750455126963,0.65171262,103590.0,103580.0,1.58008261]
[1750455127160,0.65171262,103590.0,103580.0,1.1823504]
[1750455127358,0.25398041,103590.0,103580.0,1.97781482]
[1750455127558,0.20671341,103590.0,103580.0,1.97781482]
[1750455127761,0.05867089,103590.0,103580.0,2.00971482]
[1750455128060,0.05867089,103590.0,103580.0,2.01071482]
[1750455128658,0.2895637,103600.0,103590.0,0.1930517]
[1750455128863,0.29889772,103600.0,103590.0,1.17753991]
[1750455129055,0.05759632,103600.0,103590.0,1.17753991]
[1750455129462,0.13569872,103600.0,103590.0,1.17753991]
[1750455129660,0.05759632,103600.0,103590.0,1.17753991]
[1750455130263,0.00869632,103610.0,103600.0,0.1930331]
[1750455130462,0.00869632,103610.0,103600.0,1.62843523]
[1750455130765,0.001,103610.0,103600.0,1.62843523]
[1750455131168,0.001,103610.0,103600.0,2.02616744]
[1750455131760,0.002,103610.0,103600.0,2.02616744]
[1750455132158,0.002,103610.0,103600.0,1.23070302]
[1750455132356,0.002,103610.0,103600.0,2.02616744]
[1750455133168,0.002,103610.0,103600.0,1.23070302]
[1750455133366,0.002,103610.0,103600.0,2.02616744]
[1750455133667,0.07926474,103610.0,103600.0,2.02616744]
[1750455133967,0.002,103610.0,103600.0,2.02616744]
[1750455134165,0.002,103610.0,103600.0,1.23070302]
[1750455134362,0.002,103610.0,103600.0,2.02616744]
[1750455134867,0.002,103610.0,103600.0,2.16660744]
[1750455135053,0.002,103610.0,103600.0,1.37114302]
[1750455135261,0.002,103610.0,103600.0,2.16660744]
[1750455136673,0.002,103610.0,103600.0,1.37114302]
[1750455137158,0.002,103610.0,103600.0,2.16660744]
[1750455138067,0.002,103610.0,103600.0,2.19850744]
[1750455139253,0.001,103610.0,103600.0,2.19850744]
[1750455139457,0.59169071,103640.0,103630.0,0.1929772]
[1750455139765,0.59169071,103640.0,103630.0,1.54742941]
[1750455139966,0.59209071,103640.0,103630.0,1.64112941]
[1750455140565,0.40113221,103640.0,103630.0,1.64112941]
[1750455140758,0.59369081,103640.0,103630.0,1.64112941]
[1750455140961,0.1963586,103640.0,103630.0,1.6404694]
[1750455141264,0.0034,103640.0,103630.0,1.6404694]
[1750455141464,0.1973586,103640.0,103630.0,1.6404694]
[1750455142065,0.0044,103640.0,103630.0,1.8334534]
[1750455142271,0.004,103640.0,103630.0,1.8334534]
[1750455142474,0.0044,103640.0,103630.0,1.8334534]
[1750455142960,0.0014,103640.0,103630.0,1.8344534]
[1750455143367,0.0014,103640.0,103630.0,1.8334534]
[1750455143763,0.001,103640.0,103630.0,1.8334534]
[1750455143971,0.27288673,103660.0,103650.0,0.19294]
[1750455144267,0.27288673,103660.0,103650.0,1.15042]
[1750455144468,0.27288673,103660.0,103650.0,1.6449922]
[1750455145272,0.27288673,103660.0,103650.0,1.24792]
[1750455146669,0.66995893,103660.0,103650.0,1.1825]
[1750455146969,0.73185893,103660.0,103650.0,1.1825]
[1750455147163,0.33478673,103660.0,103650.0,1.1825]
[1750455147363,0.73185893,103660.0,103650.0,1.1825]
[1750455147781,0.73185893,103660.0,103650.0,0.58554]
[1750455147973,0.73185893,103660.0,103650.0,1.1511]
[1750455148366,1.09265893,103660.0,103650.0,0.7903]
[1750455148570,1.09265893,103660.0,103650.0,0.0004]
[1750455148767,1.09265893,103660.0,103640.0,0.80792843]
[1750455148768,0.1929399,103650.0,103640.0,0.80792843]
[1750455148964,0.6827121,103650.0,103640.0,0.80792843]
[1750455149668,1.0435121,103650.0,103640.0,0.7908374]
[1750455149862,0.1929585,103640.0,103630.0,0.0008]
[1750455150067,1.0119307,103640.0,103630.0,0.0008]
[1750455150366,0.1930144,103610.0,103600.0,0.21456839]
[1750455150569,0.9508866,103610.0,103600.0,0.21456839]
[1750455150768,1.1209829,103610.0,103600.0,0.21456839]
[1750455150963,1.1209829,103610.0,103600.0,0.02194399]
[1750455151164,1.1209829,103610.0,103600.0,0.00457407]
[1750455151365,1.1209829,103610.0,103600.0,0.00417407]
[1750455151569,1.1209829,103610.0,103600.0,0.00457407]
[1750455151874,1.13061331,103610.0,103600.0,0.00457407]
[1750455153270,1.16201331,103610.0,103600.0,0.00457407]
[1750455154175,0.76494111,103610.0,103600.0,0.00457407]
[1750455154477,1.16201331,103610.0,103600.0,0.00457407]
[1750455157078,1.16201331,103610.0,103600.0,0.19760717]
[1750455158176,1.16201331,103610.0,103600.0,0.00457407]
[1750455159877,0.76494111,103610.0,103600.0,0.19760707]
[1750455160084,1.0473628,103630.0,103610.0,0.1447521]
[1750455160289,0.1929958,103620.0,103610.0,0.3696523]
[1750455160580,0.9657163,103630.0,103610.0,0.3696523]
[1750455160581,0.90510865,103630.0,103620.0,0.1929958]
[1750455160780,1.1587091,103630.0,103620.0,0.1929958]
[1750455161371,0.7616369,103630.0,103620.0,0.1929958]
[1750455161575,1.1587091,103630.0,103620.0,0.1929958]
[1750455163683,0.2412404,103630.0,103620.0,0.2883958]
[1750455163882,0.2412404,103630.0,103620.0,0.6491958]
[1750455164579,0.1929772,103630.0,103620.0,0.7939338]
[1750455164783,0.1929772,103630.0,103620.0,1.191006]
[1750455165283,0.1929772,103630.0,103620.0,0.7939338]
[1750455165679,0.1929772,103630.0,103620.0,1.5360138]
[1750455170687,0.1929772,103630.0,103620.0,1.54018787]
[1750455177285,0.1929772,103630.0,103620.0,1.13114037]
[1750455177487,0.1929772,103630.0,103620.0,1.44369467]
[1750455177889,0.1929772,103630.0,103620.0,1.08289467]
[1750455178083,0.1929772,103630.0,103620.0,1.44369467]
[1750455179490,0.1929772,103630.0,103620.0,1.08289467]
[1750455179689,0.1929772,103630.0,103620.0,1.44369467]
[1750455181195,0.77107469,103640.0,103630.0,0.1929771]
[1750455181493,1.27852062,103640.0,103630.0,0.2572771]
[1750455185894,1.27852062,103640.0,103630.0,0.26145117]
[1750455191294,1.27852062,103640.0,103630.0,0.06847407]
[1750455191494,1.27852062,103640.0,103630.0,0.26145127]
[1750455191894,1.27852062,103640.0,103630.0,0.06847407]
[1750455192099,1.27852062,103640.0,103630.0,0.26145127]
[1750455193602,1.27852062,103640.0,103630.0,0.06847407]
[1750455194302,1.27852062,103640.0,103630.0,0.26145117]
[1750455195097,1.27852062,103640.0,103630.0,0.06847407]
[1750455195406,1.27852062,103640.0,103630.0,0.26145117]
[1750455195603,1.27852062,103640.0,103630.0,0.06847407]
[1750455199516,1.35508535,103640.0,103630.0,0.06847407]
[1750455199814,1.27852062,103640.0,103630.0,0.05905939]
[1750455201916,1.27852062,103640.0,103630.0,0.03597407]
[1750455203422,1.27852062,103640.0,103630.0,0.22895117]
[1750455206915,1.37422653,103640.0,103630.0,0.21639843]
[1750455208116,1.27852062,103640.0,103630.0,0.21639843]
[1750455208519,1.27852062,103640.0,103630.0,0.02342133]
[1750455208722,1.27852062,103640.0,103630.0,0.21639843]
[1750455209726,1.27852062,103640.0,103630.0,0.2069838]
[1750455210022,1.27852062,103640.0,103630.0,0.19715117]
[1750455211925,1.10986263,103640.0,103630.0,0.19715117]
[1750455212124,1.20634873,103640.0,103630.0,0.26195117]
[1750455213527,1.21603171,103640.0,103630.0,0.26195117]
[1750455215230,1.21603171,103640.0,103630.0,0.06897407]
[1750455216925,1.61337239,103640.0,103630.0,0.06897407]
[1750455218127,1.61337239,103640.0,103630.0,0.26195117]
[1750455218332,0.81895951,103640.0,103630.0,0.26195117]
[1750455218518,1.61337239,103640.0,103630.0,0.26195117]
[1750455219825,1.61337239,103640.0,103630.0,0.25253677]
[1750455220022,1.61437239,103640.0,103630.0,0.25253677]
[1750455220423,1.61437239,103640.0,103630.0,0.25671084]
[1750455221732,1.25357239,103640.0,103630.0,0.25671084]
[1750455222129,1.61437239,103640.0,103630.0,0.25671084]
[1750455222323,1.25357239,103640.0,103630.0,0.25671084]
[1750455222526,1.61437239,103640.0,103630.0,0.25671084]
[1750455224433,1.69141384,103640.0,103630.0,0.25671084]
[1750455225839,1.69141384,103640.0,103630.0,0.06373374]
[1750455226238,1.69141384,103640.0,103630.0,0.25671074]
[1750455226736,1.33061384,103640.0,103630.0,0.25671074]
[1750455226930,1.69141384,103640.0,103630.0,0.25671074]
[1750455227438,1.69141384,103640.0,103630.0,0.06373374]
[1750455228642,1.69141384,103640.0,103630.0,0.25671074]
[1750455229839,1.69141384,103640.0,103630.0,0.24729636]
[1750455230042,1.72271384,103640.0,103630.0,0.24729636]
[1750455230229,1.64567239,103640.0,103630.0,0.24729636]
[1750455233344,0.85125951,103640.0,103630.0,0.24729636]
[1750455233539,1.64567239,103640.0,103630.0,0.24729636]
[1750455235845,1.64567239,103640.0,103630.0,0.05431936]
[1750455237349,1.64567239,103640.0,103630.0,0.24729646]
[1750455238343,1.64567239,103640.0,103630.0,0.05431936]
[1750455239051,1.64567239,103640.0,103630.0,0.00417407]
[1750455239251,0.1930144,103610.0,103600.0,0.650736]
[1750455239454,1.02811214,103610.0,103600.0,0.286933]
[1750455239650,1.05921214,103610.0,103600.0,0.286533]
[1750455239845,1.16584427,103610.0,103600.0,0.286533]
[1750455240147,1.16584427,103610.0,103600.0,0.0939]
[1750455240549,1.19884427,103610.0,103600.0,0.0939]
[1750455240751,1.79592427,103610.0,103600.0,0.0935]
[1750455240951,1.82732427,103610.0,103600.0,0.0939]
[1750455241557,1.82732427,103610.0,103600.0,0.0979]
[1750455241752,1.75023297,103610.0,103600.0,0.0979]
[1750455242156,1.75023297,103610.0,103600.0,0.0939]
[1750455242854,1.75045095,103610.0,103600.0,0.0939]
[1750455244859,1.75045095,103610.0,103600.0,0.09807407]
[1750455245751,1.75045095,103610.0,103600.0,0.29110707]
[1750455246362,1.75045095,103610.0,103600.0,0.09807407]
[1750455250256,1.80805584,103610.0,103600.0,0.09807407]
[1750455250561,1.80805584,103610.0,103600.0,0.29110707]
[1750455253960,1.41063142,103610.0,103600.0,0.29110707]
[1750455254160,1.80805584,103610.0,103600.0,0.29110707]
[1750455256064,1.77505584,103610.0,103600.0,0.29110707]
[1750455256573,0.78155142,103610.0,103600.0,0.29110707]
[1750455256864,0.61241929,103610.0,103600.0,0.68853149]
[1750455257567,0.25161929,103610.0,103600.0,0.68853149]
[1750455257767,0.25161929,103610.0,103600.0,0.29110707]
[1750455257971,0.25161929,103610.0,103600.0,0.65190707]
[1750455258665,0.25161929,103610.0,103600.0,1.04933149]
[1750455258866,0.25161929,103610.0,103600.0,1.78605149]
[1750455259265,0.25161929,103610.0,103600.0,1.78705149]
[1750455260069,0.25061929,103610.0,103600.0,1.78905149]
[1750455262068,0.03981249,103610.0,103600.0,1.78905149]
[1750455262273,0.23282689,103610.0,103600.0,1.78905149]
[1750455262872,0.23282689,103610.0,103600.0,2.18617271]
[1750455265177,0.03981249,103610.0,103600.0,2.18617271]
[1750455265573,0.68678532,103620.0,103610.0,0.1930144]
[1750455265775,0.68678532,103620.0,103610.0,0.65248722]
[1750455267079,0.68678532,103620.0,103610.0,1.01328722]
[1750455268680,0.63853232,103620.0,103610.0,1.01328722]
[1750455269082,0.2412595,103620.0,103610.0,1.01328722]
[1750455269281,0.63853232,103620.0,103610.0,1.01328722]
[1750455269782,0.2412595,103620.0,103610.0,1.01328722]
[1750455270075,0.3183508,103620.0,103610.0,1.01328722]
[1750455270380,0.2412595,103620.0,103610.0,1.01328722]
[1750455271676,0.63853232,103620.0,103610.0,1.01328722]
[1750455272482,0.59028012,103620.0,103610.0,1.01328722]
[1750455272985,0.59028012,103620.0,103610.0,0.6160144]
[1750455273486,0.66737142,103620.0,103610.0,1.01328722]
[1750455273987,0.2700986,103620.0,103610.0,1.01328722]
[1750455274283,0.66737142,103620.0,103610.0,1.01328722]
[1750455275178,0.66737142,103620.0,103610.0,1.01846129]
[1750455275379,0.2700986,103620.0,103610.0,1.01846129]
[1750455276181,0.66737142,103620.0,103610.0,1.02046129]
[1750455276885,0.2700986,103620.0,103610.0,1.02046129]
[1750455277085,0.1930073,103620.0,103610.0,1.02046129]
[1750455277285,0.84419902,103630.0,103620.0,0.21049439]
[1750455277487,0.84419902,103630.0,103620.0,0.29837928]
[1750455285291,0.87589902,103630.0,103620.0,0.29837928]
[1750455287094,0.4786262,103630.0,103620.0,0.29837928]
[1750455287296,0.87589902,103630.0,103620.0,0.29837928]
[1750455287488,0.87589902,103630.0,103620.0,0.28896413]
[1750455288395,0.77940352,103630.0,103620.0,0.68623695]
[1750455289195,0.77940352,103630.0,103620.0,0.28896413]
[1750455290397,0.77940352,103630.0,103620.0,0.2931382]
[1750455291198,0.74770352,103630.0,103620.0,0.2931382]
[1750455291398,0.74770352,103630.0,103620.0,0.69041102]
[1750455294896,0.71560352,103630.0,103620.0,0.69041102]
[1750455295394,0.66735842,103630.0,103620.0,1.05121102]
[1750455296098,0.66735842,103630.0,103620.0,1.64705102]
[1750455296400,0.59026712,103630.0,103620.0,1.64705102]
[1750455298200,0.39727282,103630.0,103620.0,1.63763688]
[1750455298402,0.59026712,103630.0,103620.0,1.63763688]
[1750455299094,0.59026712,103630.0,103620.0,1.63863688]
[1750455299597,0.59026712,103630.0,103620.0,1.64063688]
[1750455300391,0.1929943,103630.0,103620.0,1.64063688]
[1750455302405,0.1929943,103630.0,103620.0,1.78111688]
[1750455302899,0.59026712,103630.0,103620.0,1.78111688]
[1750455304403,0.1929943,103630.0,103620.0,1.78111688]
[1750455304608,0.37308925,103640.0,103630.0,0.1929765]
[1750455304609,0.85408597,103640.0,103630.0,0.1929765]
[1750455304900,0.95718342,103640.0,103630.0,0.62054932]
[1750455305095,0.5599106,103640.0,103630.0,0.65304932]
[1750455305294,0.5599106,103640.0,103630.0,0.2557765]
[1750455305492,0.95718342,103640.0,103630.0,1.01384932]
[1750455306307,0.511667,103640.0,103630.0,1.01384932]
[1750455306601,0.90893982,103640.0,103630.0,1.01384932]
[1750455306805,0.90893982,103640.0,103630.0,0.6165765]
[1750455307006,0.90893982,103640.0,103630.0,1.01384932]
[1750455308008,0.90893982,103640.0,103630.0,1.00443552]
[1750455308706,0.90893982,103640.0,103630.0,0.64363552]
[1750455308906,0.90893982,103640.0,103630.0,1.00443552]
[1750455311301,0.90893982,103640.0,103630.0,0.64363552]
[1750455311508,0.90893982,103640.0,103630.0,1.00443552]
[1750455312409,0.90893982,103640.0,103630.0,0.6071627]
[1750455312710,0.90893982,103640.0,103630.0,1.00443552]
[1750455314312,0.479567,103640.0,103630.0,1.00443552]
[1750455314608,0.87683982,103640.0,103630.0,1.00443552]
[1750455316006,0.0004,103640.0,103630.0,1.00443552]
[1750455316207,0.05772493,103640.0,103630.0,1.00443552]
[1750455316408,0.05812493,103640.0,103630.0,1.00443552]
[1750455318208,0.25108323,103640.0,103630.0,1.00443552]
[1750455320306,0.05812493,103640.0,103630.0,1.00443552]
[1750455320808,0.05812493,103640.0,103630.0,1.01060959]
[1750455321413,0.05812493,103640.0,103630.0,1.01160959]
[1750455323308,0.05812493,103640.0,103630.0,0.61433677]
[1750455323511,0.05812493,103640.0,103630.0,1.01160959]
[1750455329210,0.05772493,103640.0,103630.0,1.01160959]
[1750455329418,0.05772493,103640.0,103630.0,1.74744959]
[1750455330119,0.05812493,103640.0,103630.0,1.74744959]
[1750455330317,0.0004,103640.0,103630.0,1.74744959]
[1750455332113,0.0004,103640.0,103630.0,2.14472241]
[1750455332818,0.05772493,103650.0,103640.0,0.1929583]
[1750455333023,0.05772493,103650.0,103640.0,1.44390394]
[1750455336824,0.05772493,103650.0,103640.0,1.08310394]
[1750455337023,0.05772493,103650.0,103640.0,1.44390394]
[1750455337726,0.25066463,103650.0,103640.0,1.44390394]
[1750455338626,0.05772493,103650.0,103640.0,1.44390394]
[1750455338827,0.25066463,103650.0,103640.0,1.44390394]
[1750455340729,0.25066463,103650.0,103640.0,0.6493583]
[1750455340934,0.25066463,103650.0,103640.0,1.44390394]
[1750455343832,0.25066463,103650.0,103640.0,0.2885583]
[1750455344038,0.25068934,103650.0,103640.0,2.03918394]
[1750455344244,0.1929397,103650.0,103640.0,2.03918394]
[1750455344646,0.25070095,103650.0,103640.0,2.03918394]
[1750455344843,0.1929397,103650.0,103640.0,2.03918394]
[1750455346037,1.00263041,103660.0,103650.0,0.1929397]
[1750455346242,1.00263041,103660.0,103650.0,0.95101252]
[1750455347047,1.00263041,103660.0,103650.0,0.5537397]
[1750455347247,1.39990323,103660.0,103650.0,0.59021252]
[1750455347748,1.00263041,103660.0,103650.0,0.59021252]
[1750455348246,1.00263041,103660.0,103650.0,0.5808002]
[1750455350144,0.83123161,103660.0,103650.0,0.5808002]
[1750455350346,0.83123161,103660.0,103650.0,0.21910145]
[1750455350535,0.83123161,103660.0,103650.0,0.61637427]
[1750455352744,0.43395879,103660.0,103650.0,0.61637427]
[1750455352946,0.83123161,103660.0,103650.0,0.61637427]
[1750455353139,0.43395879,103660.0,103650.0,0.21910145]
[1750455353448,0.83123161,103660.0,103650.0,0.61637427]
[1750455354247,0.92590823,103660.0,103650.0,0.61637427]
[1750455354442,0.84477383,103660.0,103650.0,0.61637427]
[1750455354642,0.79574013,103660.0,103650.0,0.64637427]
[1750455354847,0.79574013,103660.0,103650.0,1.00717427]
[1750455355153,0.71904883,103660.0,103650.0,1.00717427]
[1750455356246,0.70352281,103660.0,103650.0,1.00717427]
[1750455357047,0.78061411,103660.0,103650.0,1.00717427]
[1750455357749,0.70352281,103660.0,103650.0,1.00717427]
[1750455358152,0.78061411,103660.0,103650.0,1.00717427]
[1750455358552,0.38334129,103660.0,103650.0,1.00717427]
[1750455359051,0.78061411,103660.0,103650.0,1.00717427]
[1750455360052,0.78061411,103660.0,103650.0,0.60990145]
[1750455360455,0.78061411,103660.0,103650.0,1.00717427]
[1750455362654,0.78061411,103660.0,103650.0,0.60990145]
[1750455362857,0.78061411,103660.0,103650.0,1.00717427]
[1750455365452,0.78061411,103660.0,103650.0,0.58497427]
[1750455365656,0.78061411,103660.0,103650.0,1.57101427]
[1750455365957,0.78061411,103660.0,103650.0,1.60241427]
[1750455367854,0.78061411,103660.0,103650.0,1.24161427]
[1750455368059,0.78061411,103660.0,103650.0,1.60241427]
[1750455372264,0.58343229,103660.0,103650.0,1.60241427]